[Event "Hungarian Rapid-ch 2022"]
[Site "Ajka"]
[Date "2022.07.17"]
[Round "13.28"]
[White "Papp, Bence"]
[Black "Nemeth, Zoltan"]
[Result "0-1"]
[ECO "D00"]
[WhiteElo "2244"]
[BlackElo "2242"]
[Annotator "ChessBase"]
[PlyCount "68"]
[EventDate "2022.07.15"]
[EventType "swiss"]
[EventCountry "HUN"]
[SourceTitle "playchess.com"]
[Source "ChessBase"]
[SourceQuality "1"]
[TimeControl "900+10"]

1. d4 {[%emt 0:00:11]} d5 {[%emt 0:00:11]} 2. Bf4 {[%emt 0:00:03]} c5 {[%emt 0:00:31]} 3. e3 {[%emt 0:00:01]} Qb6 {[%emt 0:00:02]} 4. c4 {[%emt 0:02:25]} cxd4 {[%emt 0:00:22]} 5. Qxd4 {[%emt 0:00:05]} Qxd4 {[%emt 0:00:10]} 6. exd4 {[%emt 0:00:01]} dxc4 {[%emt 0:00:27]} 7. Bxc4 {[%emt 0:00:02]} Nf6 {[%emt 0:00:23]} 8. Nf3 {[%emt 0:00:16]} Nc6 {[%emt 0:01:29]} 9. Nc3 {[%emt 0:00:18]} a6 {[%emt 0:00:13]} 10. Ne5 {[%emt 0:00:42]} e6 {[%emt 0:00:08]} 11. Nxc6 {[%emt 0:00:09]} bxc6 {[%emt 0:00:01]} 12. O-O {[%emt 0:00:20]} Be7 {[%emt 0:00:02]} 13. Rac1 {[%emt 0:00:01]} O-O {[%emt 0:00:09]} 14. Na4 {[%emt 0:00:07]} Nd7 {[%emt 0:02:05]} 15. Be2 {[%emt 0:00:41]} Bb7 {[%emt 0:00:21]} 16. Bf3 {[%emt 0:00:00]} Rac8 {[%emt 0:00:37]} 17. Rc2 {[%emt 0:00:02]} Bf6 {[%emt 0:00:43]} 18. Be3 {[%emt 0:00:38]} e5 {[%emt 0:00:02]} 19. Rd1 {[%emt 0:00:51]} exd4 {[%emt 0:00:24]} 20. Bxd4 {[%emt 0:00:03]} Ne5 {[%emt 0:00:20]} 21. Be2 {[%emt 0:04:50]} Rcd8 {[%emt 0:00:10]} 22. Rcd2 {[%emt 0:00:26]} Rfe8 {[%emt 0:00:43]} 23. Kf1 {[%emt 0:00:57]} a5 {[%emt 0:00:12]} 24. Bb6 {[%emt 0:00:24]} Ra8 {[%emt 0:00:34]} 25. Nc5 {[%emt 0:00:07]} Bc8 {[%emt 0:00:21]} 26. f4 {[%emt 0:01:03]} Ng4 {[%emt 0:00:32]} 27. Nd7 {[%emt 0:02:07]} Bxd7 {[%emt 0:03:27]} 28. Rxd7 {[%emt 0:00:01]} Nxh2+ {[%emt 0:01:57]} 29. Kf2 {[%emt 0:00:01]} Rab8 {[%emt 0:00:01]} 30. Bxa5 {[%emt 0:00:28]} Rxb2 {[%emt 0:00:11]} 31. R1d2 {[%emt 0:00:01]} g6 {[%emt 0:00:51]} 32. Bc4 {[%emt 0:01:34]} Ng4+ {[%emt 0:00:36]} 33. Kf3 {[%emt 0:00:01]} Re3+ {[%emt 0:00:04]} 34. Kxg4 {[%emt 0:00:15]} h5# {[%emt 0:00:01]} 0-1

[Event "Hungarian Rapid-ch 2022"]
[Site "Ajka"]
[Date "2022.07.17"]
[Round "13.29"]
[White "Balint, Vilmos"]
[Black "Juhasz, Zoltan"]
[Result "0-1"]
[ECO "C00"]
[WhiteElo "2283"]
[BlackElo "1985"]
[Annotator "ChessBase"]
[PlyCount "78"]
[EventDate "2022.07.15"]
[EventType "swiss"]
[EventCountry "HUN"]
[SourceTitle "playchess.com"]
[Source "ChessBase"]
[SourceQuality "1"]
[TimeControl "900+10"]

1. e4 {[%emt 0:00:13]} e6 {[%emt 0:00:14]} 2. Qe2 {[%emt 0:00:02]} Be7 {[%emt 0:00:07]} 3. f4 {[%emt 0:00:07]} d5 {[%emt 0:00:07]} 4. d3 {[%emt 0:00:05]} Nf6 {[%emt 0:00:35]} 5. Nc3 {[%emt 0:00:11]} c5 {[%emt 0:00:16]} 6. Nf3 {[%emt 0:00:04]} Nc6 {[%emt 0:00:01]} 7. Ne5 {[%emt 0:00:16]} Nd4 {[%emt 0:04:16]} 8. Qd1 {[%emt 0:00:02]} b6 {[%emt 0:01:53]} 9. Be2 {[%emt 0:01:55]} Bb7 {[%emt 0:00:28]} 10. Bf3 {[%emt 0:00:02]} O-O {[%emt 0:00:36]} 11. O-O {[%emt 0:00:03]} Nxf3+ {[%emt 0:00:53]} 12. gxf3 {[%emt 0:00:12]} d4 {[%emt 0:02:02]} 13. Ne2 {[%emt 0:00:03]} Nd7 {[%emt 0:00:11]} 14. Ng3 {[%emt 0:00:42]} Bh4 {[%emt 0:01:30]} 15. Bd2 {[%emt 0:00:48]} f5 {[%emt 0:00:49]} 16. Qe2 {[%emt 0:00:16]} Nxe5 {[%emt 0:00:29]} 17. fxe5 {[%emt 0:00:01]} f4 {[%emt 0:00:04]} 18. Nh1 {[%emt 0:00:06]} Qg5+ {[%emt 0:00:03]} 19. Qg2 {[%emt 0:00:01]} Qxe5 {[%emt 0:00:02]} 20. Nf2 {[%emt 0:00:02]} h5 {[%emt 0:01:30]} 21. Qh3 {[%emt 0:00:30]} Qf6 {[%emt 0:00:04]} 22. Kh1 {[%emt 0:00:13]} e5 {[%emt 0:00:01]} 23. b3 {[%emt 0:00:10]} Bc8 {[%emt 0:00:05]} 24. Qg2 {[%emt 0:00:03]} Qe6 {[%emt 0:00:45]} 25. Rg1 {[%emt 0:00:06]} Rf7 {[%emt 0:00:10]} 26. Nd1 {[%emt 0:00:04]} a5 {[%emt 0:00:32]} 27. Nb2 {[%emt 0:00:03]} Raa7 {[%emt 0:00:13]} 28. a4 {[%emt 0:00:06]} Kh7 {[%emt 0:00:05]} 29. Nc4 {[%emt 0:00:01]} Ba6 {[%emt 0:00:48]} 30. Nb2 {[%emt 0:00:34]} Rf6 {[%emt 0:00:06]} 31. Qe2 {[%emt 0:00:14]} g5 {[%emt 0:00:14]} 32. Rg2 {[%emt 0:00:07]} Rg7 {[%emt 0:00:04]} 33. Rag1 {[%emt 0:00:02]} Rfg6 {[%emt 0:00:16]} 34. Be1 {[%emt 0:00:40]} Bxe1 {[%emt 0:00:00]} 35. Qxe1 {[%emt 0:00:01]} Qh3 {[%emt 0:00:17]} 36. Qf1 {[%emt 0:00:02]} g4 {[%emt 0:00:13]} 37. Nd1 {[%emt 0:00:37]} g3 {[%emt 0:00:27]} 38. Re2 {[%emt 0:01:05]} Qxf1 {[%emt 0:00:08]} 39. Rxf1 {[%emt 0:00:01]} g2+ {[%emt 0:00:00]} 0-1

[Event "Hungarian Rapid-ch 2022"]
[Site "Ajka"]
[Date "2022.07.17"]
[Round "13.30"]
[White "Farago, Sandor"]
[Black "Reviczki, Roland"]
[Result "1-0"]
[ECO "B30"]
[WhiteElo "2141"]
[BlackElo "2160"]
[Annotator "TA"]
[PlyCount "95"]
[EventDate "2022.07.15"]
[EventType "swiss"]
[EventCountry "HUN"]
[SourceTitle "playchess.com"]
[Source "ChessBase"]
[SourceQuality "1"]
[TimeControl "900+10"]

{[%evp 9,95,-22,-16,-7,0,0,5,5,45,14,11,18,26,27,21,0,11,-46,-43,-37,-29,-45,-20,-38,-39,-88,-77,-106,-54,-52,-53,-70,-70,-75,18,-110,-78,-38,-4,0,0,-25,-13,-13,-14,-39,-25,-32,-47,-135,-121,-112,-87,-74,0,0,0,0,0,0,0,0,0,0,0,12,42,16,18,16,16,0,0,0,0,-14,-8,-55,0,0,529,509,6179,6179,5397,5310,29979,29980]} 1. e4 {[%emt 0:00:12]} c5 {[%emt 0:00:13]} 2. Nf3 {[%emt 0:00:02]} Nc6 {[%emt 0:00:03]} 3. g3 {[%emt 0:00:04]} d5 {[%emt 0:00:14]} 4. Nc3 {[%emt 0:00:48]} dxe4 {[%emt 0:00:54]} 5. Nxe4 {[%emt 0:00:02]} e5 {[%emt 0:00:02] [#]} 6. d3 $146 {[%emt 0:00:11] B30: Sicilian: 2...Nc6 3 Bb5, lines without ...g6.} ({Predecessor:} 6. Bb5 Bd7 7. Bf1 f5 8. Nc3 Nf6 9. d3 Bd6 10. Bg2 O-O 11. O-O a6 12. Bg5 {0-1 (33) Pham,T-Dang,B (2158) Vung Tau 2004}) 6... Be7 {[%emt 0:00:56]} 7. Bg2 {[%emt 0:00:05]} f5 {[%emt 0:01:41]} 8. Nc3 {[%emt 0:00:10] The position is equal.} Bf6 {[%emt 0:00:43]} 9. O-O {[%emt 0:00:09]} Nge7 {[%emt 0:00:02]} 10. Bg5 {[%emt 0:00:48]} O-O {[%emt 0:02:51]} (10... Bxg5 {looks sharper.} 11. Nxg5 O-O 12. Re1 f4) 11. Bxf6 {[%emt 0:00:02]} gxf6 {[%emt 0:00:01]} 12. Nd2 {[%emt 0:01:47]} Be6 {[%emt 0:01:25]} 13. Re1 {[%emt 0:00:48]} ({White should try} 13. f4 $11) 13... Qd7 $15 {[%emt 0:01:11]} 14. Rc1 {[%emt 0:01:34]} Ng6 {[%emt 0:00:20]} 15. Nc4 {[%emt 0:01:45]} f4 {[%emt 0:00:43]} 16. Ne4 {[%emt 0:00:32]} b6 {[%emt 0:00:03]} 17. a3 {[%emt 0:01:37] [#]} (17. a4 $1 $15 {feels stronger.}) 17... Rad8 $1 $17 {[%emt 0:00:09]} 18. Ned6 {[%emt 0:00:36]} Nce7 {[%emt 0:01:35]} (18... Kh8 $17) 19. Ne4 $1 $15 {[%emt 0:00:21]} Nd5 {[%emt 0:00:34]} 20. Qe2 {[%emt 0:00:28]} Kh8 {[%emt 0:00:14]} 21. Rcd1 {[%emt 0:00:25]} Rg8 {[%emt 0:01:16] [#]} (21... Qg7 $17) 22. Kh1 {[%emt 0:00:11]} (22. Nxf6 $1 $11 Nxf6 23. Nxe5) 22... Qg7 {[%emt 0:00:25][%cal Og6h4] Hoping for ...Nh4!} (22... fxg3 {is more complex.} 23. fxg3 Ngf4 24. Qf1 Nxg2 25. Qxg2 Nf4) 23. Bf3 {[%emt 0:00:14]} fxg3 {[%emt 0:00:21]} 24. fxg3 {[%emt 0:00:05]} Rgf8 {[%emt 0:01:07]} 25. Ne3 {[%emt 0:00:28]} Nxe3 {[%emt 0:00:31]} 26. Qxe3 {[%emt 0:00:01]} Bc8 {[%emt 0:00:10]} 27. Nc3 {[%emt 0:00:16]} Ne7 {[%emt 0:00:22][%cal Bg6e7,Be7f5,Bf5d4][%mdl 32]} 28. Be4 {[%emt 0:00:51]} Nf5 {[%emt 0:00:23]} 29. Qf2 {[%emt 0:00:05]} (29. Bxf5 $15 Bxf5 30. Rd2) 29... Nd4 $17 {[%emt 0:00:08]} 30. Bg2 {[%emt 0:00:33]} f5 {[%emt 0:00:31]} 31. Rd2 {[%emt 0:00:35][%cal Bd1d2,Bd2e2,Be2e3][%mdl 32]} Rde8 {[%emt 0:00:31]} (31... f4 $17) 32. Nd5 $11 {[%emt 0:00:16]} Bb7 {[%emt 0:00:14]} 33. c3 $1 {[%emt 0:00:07]} Ne6 {[%emt 0:00:23]} 34. Rde2 {[%emt 0:00:08]} e4 {[%emt 0:00:07]} 35. Nf4 {[%emt 0:00:22]} Ba6 {[%emt 0:00:18]} 36. c4 {[%emt 0:00:26]} Nd4 {[%emt 0:00:07]} 37. Re3 {[%emt 0:00:08]} Qf7 {[%emt 0:00:12]} 38. dxe4 {[%emt 0:00:17]} fxe4 {[%emt 0:00:03]} 39. Rxe4 {[%emt 0:00:21]} Bxc4 {[%emt 0:00:14]} 40. h3 {[%emt 0:00:46]} Rxe4 {[%emt 0:00:08]} 41. Rxe4 {[%emt 0:00:15]} Bd5 {[%emt 0:00:03]} 42. Re5 {[%emt 0:00:03][%cal Be4e5,Be5h5,Bh5f5][%mdl 32]} Bxg2+ {[%emt 0:00:05]} 43. Qxg2 {[%emt 0:00:09]} Qf6 {[%emt 0:00:11]} (43... Nf5 $1 $15) 44. Qe4 {[%emt 0:00:11]} Nb5 $2 {[%emt 0:00:32][%mdl 8192]} (44... Nf5 $11 45. Kh2 Nh4) 45. Rh5 $18 {[%emt 0:00:40][%csl Gh5][%cal Re4h7]} Qg7 (45... Qf7 $142 46. Ng6+ Kg7 47. Qe5+ (47. Nxf8 Qxh5 48. Ne6+ Kf6 $11) 47... Qf6) 46. Ng6+ Kg8 {[%emt 0:00:15]} 47. Nxf8 {[%emt 0:00:13] White wants to mate with Qd5+.} Kxf8 48. Rf5+ {[%emt 0:00:13] Weighted Error Value: White=0.16 (very precise) /Black=0.46} 1-0